[Event "Late-Titled-Tuesday-Blitz-February-20-2024"]
[Site "Chess.com"]
[Date "2024.02.20"]
[Round "3"]
[White "Abund"]
[Black "TokChess"]
[Result "1-0"]
[WhiteElo "2795"]
[BlackElo "2560"]
[TimeControl "180+1"]
[EndTime "14:28:58 PST"]
[Termination "Abund won by resignation"]

1. e4 {[%clk 0:03:00.9]} 1... d6 {[%clk 0:02:57.8]} 2. d4 {[%clk 0:03:01]} 2...
Nf6 {[%clk 0:02:58.3]} 3. f3 {[%clk 0:02:56.9]} 3... Nbd7 {[%clk 0:02:57.9]} 4.
Be3 {[%clk 0:02:57]} 4... e5 {[%clk 0:02:58.1]} 5. d5 {[%clk 0:02:56.6]} 5...
Be7 {[%clk 0:02:56.8]} 6. c4 {[%clk 0:02:56]} 6... O-O {[%clk 0:02:55.4]} 7. g4
{[%clk 0:02:53]} 7... Ne8 {[%clk 0:02:47.1]} 8. Ne2 {[%clk 0:02:48]} 8... Bg5
{[%clk 0:02:44.7]} 9. Qd2 {[%clk 0:02:47.6]} 9... h6 {[%clk 0:02:43.5]} 10. Nbc3
{[%clk 0:02:46.3]} 10... Bxe3 {[%clk 0:02:43]} 11. Qxe3 {[%clk 0:02:46.6]} 11...
Qg5 {[%clk 0:02:42.7]} 12. Qxg5 {[%clk 0:02:35.8]} 12... hxg5 {[%clk 0:02:43.6]}
13. Ng3 {[%clk 0:02:24.9]} 13... g6 {[%clk 0:02:42.9]} 14. h4 {[%clk 0:02:24.8]}
14... gxh4 {[%clk 0:02:41.6]} 15. Rxh4 {[%clk 0:02:25.7]} 15... Kg7 {[%clk
0:02:42]} 16. g5 {[%clk 0:02:18.3]} 16... a6 {[%clk 0:02:27.4]} 17. Bh3 {[%clk
0:02:15.3]} 17... f6 {[%clk 0:02:25.9]} 18. gxf6+ {[%clk 0:02:01.2]} 18... Nexf6
{[%clk 0:02:26.1]} 19. Ke2 {[%clk 0:01:53.3]} 19... Nb6 {[%clk 0:02:13.9]} 20.
Bxc8 {[%clk 0:01:41.1]} 20... Raxc8 {[%clk 0:02:12.6]} 21. b3 {[%clk 0:01:31.4]}
21... Rh8 {[%clk 0:02:12.7]} 22. Rah1 {[%clk 0:01:28.5]} 22... Rxh4 {[%clk
0:02:12]} 23. Rxh4 {[%clk 0:01:29.4]} 23... Rf8 {[%clk 0:02:09.5]} 24. Rh2
{[%clk 0:01:24.3]} 24... Nh7 {[%clk 0:02:05.7]} 25. Rg2 {[%clk 0:01:19.6]} 25...
Ng5 {[%clk 0:01:48.6]} 26. Nf5+ {[%clk 0:01:11.3]} 26... Kf6 {[%clk 0:01:47.6]}
27. Nh4 {[%clk 0:01:06.3]} 27... Rh8 {[%clk 0:01:44.3]} 28. Rg4 {[%clk
0:01:05.2]} 28... Rh6 {[%clk 0:01:38.4]} 29. Nd1 {[%clk 0:01:03.5]} 29... Nh3
{[%clk 0:01:30.9]} 30. Ng2 {[%clk 0:01:03.7]} 30... Nd7 {[%clk 0:01:20.9]} 31.
Nde3 {[%clk 0:00:52.8]} 31... Kf7 {[%clk 0:01:19.6]} 32. b4 {[%clk 0:00:42.8]}
32... Nf6 {[%clk 0:01:18.1]} 33. Rh4 {[%clk 0:00:42.4]} 33... Nf4+ {[%clk
0:01:11.5]} 34. Kd2 {[%clk 0:00:42.6]} 34... Rh5 {[%clk 0:00:49.6]} 35. c5
{[%clk 0:00:27.5]} 35... Nxg2 {[%clk 0:00:36.6]} 36. Nxg2 {[%clk 0:00:26.1]}
36... Rg5 {[%clk 0:00:36]} 37. Ne3 {[%clk 0:00:21.8]} 37... Rg3 {[%clk
0:00:31.3]} 38. Ke2 {[%clk 0:00:20.1]} 38... Nh5 {[%clk 0:00:31.8]} 39. Kf2
{[%clk 0:00:17.9]} 39... Rg5 {[%clk 0:00:30.3]} 40. Rh1 {[%clk 0:00:11.3]} 40...
Ke7 {[%clk 0:00:11.6]} 41. a4 {[%clk 0:00:11.8]} 41... Kd7 {[%clk 0:00:10.6]}
42. Ng4 {[%clk 0:00:11.3]} 42... c6 {[%clk 0:00:07.2]} 43. Rd1 {[%clk
0:00:07.6]} 43... dxc5 {[%clk 0:00:05.8]} 44. bxc5 {[%clk 0:00:07.6]} 44... Kc7
{[%clk 0:00:05.3]} 45. d6+ {[%clk 0:00:07.4]} 45... Kd7 {[%clk 0:00:05.3]} 46.
Rb1 {[%clk 0:00:08]} 46... Kc8 {[%clk 0:00:05.1]} 47. Rh1 {[%clk 0:00:08.3]}
47... Kd7 {[%clk 0:00:05.1]} 48. Ke3 {[%clk 0:00:08.8]} 48... a5 {[%clk
0:00:04.7]} 49. Rb1 {[%clk 0:00:08.5]} 49... Kc8 {[%clk 0:00:04.6]} 50. Rh1
{[%clk 0:00:09.1]} 50... Kd7 {[%clk 0:00:04.6]} 51. Rh2 {[%clk 0:00:09.8]} 51...
Kc8 {[%clk 0:00:04.9]} 52. Rd2 {[%clk 0:00:06.1]} 52... Kd7 {[%clk 0:00:05.1]}
53. Rd1 {[%clk 0:00:06.5]} 53... Kc8 {[%clk 0:00:03.2]} 54. Kf2 {[%clk 0:00:05]}
54... Kd7 {[%clk 0:00:03.4]} 55. Kg2 {[%clk 0:00:04.9]} 55... Nf4+ {[%clk
0:00:02.8]} 56. Kg3 {[%clk 0:00:04.8]} 56... Kd8 {[%clk 0:00:01.9]} 57. Rh1
{[%clk 0:00:04.7]} 57... Rh5 {[%clk 0:00:02]} 58. Rxh5 {[%clk 0:00:04.7]} 58...
gxh5 {[%clk 0:00:02.8]} 59. Nxe5 {[%clk 0:00:05]} 59... Ne6 {[%clk 0:00:03.3]}
60. Nd3 {[%clk 0:00:03.9]} 60... Kd7 {[%clk 0:00:02.7]} 61. e5 {[%clk 0:00:04]}
61... b6 {[%clk 0:00:03.2]} 62. cxb6 {[%clk 0:00:04.3]} 62... c5 {[%clk
0:00:03.3]} 63. f4 {[%clk 0:00:03.7]} 63... Kc6 {[%clk 0:00:03.1]} 64. f5 {[%clk
0:00:04.1]} 64... Nd8 {[%clk 0:00:02.4]} 65. f6 {[%clk 0:00:03.5]} 65... c4
{[%clk 0:00:02.4]} 66. Nf4 {[%clk 0:00:03.4]} 66... c3 {[%clk 0:00:02.1]} 67.
Ne2 {[%clk 0:00:03.2]} 67... Ne6 {[%clk 0:00:01.7]} 68. Nxc3 {[%clk 0:00:02.7]}
68... Kxb6 {[%clk 0:00:01.8]} 69. Ne4 {[%clk 0:00:02.9]} 69... Kc6 {[%clk
0:00:02.1]} 70. f7 {[%clk 0:00:03.4]} 70... Kd5 {[%clk 0:00:02.3]} 71. Ng5
{[%clk 0:00:03.9]} 71... Nf8 {[%clk 0:00:02.7]} 72. Kf4 {[%clk 0:00:03.2]} 72...
h4 {[%clk 0:00:02.6]} 73. Kf5 {[%clk 0:00:03.8]} 73... h3 {[%clk 0:00:02.7]} 74.
Nxh3 {[%clk 0:00:04.3]} 1-0

[Event "Late-Titled-Tuesday-Blitz-February-20-2024"]
[Site "Chess.com"]
[Date "2024.02.20"]
[Round "3"]
[White "LeninGuerra"]
[Black "Vladimir_Zakhartsov"]
[Result "1-0"]
[WhiteElo "2579"]
[BlackElo "2806"]
[TimeControl "180+1"]
[EndTime "14:29:08 PST"]
[Termination "LeninGuerra won by resignation"]

1. e4 {[%clk 0:02:59.6]} 1... c6 {[%clk 0:02:57.4]} 2. Nf3 {[%clk 0:02:57.9]}
2... d5 {[%clk 0:02:57.5]} 3. exd5 {[%clk 0:02:55.1]} 3... cxd5 {[%clk
0:02:58.4]} 4. Ne5 {[%clk 0:02:55]} 4... Nc6 {[%clk 0:02:53.7]} 5. Bb5 {[%clk
0:02:52.1]} 5... Bd7 {[%clk 0:02:53]} 6. Bxc6 {[%clk 0:02:41.3]} 6... bxc6
{[%clk 0:02:51]} 7. O-O {[%clk 0:02:40.3]} 7... Nf6 {[%clk 0:02:50.4]} 8. b3
{[%clk 0:02:39.6]} 8... e6 {[%clk 0:02:45.8]} 9. Bb2 {[%clk 0:02:39.4]} 9... Bd6
{[%clk 0:02:46]} 10. c4 {[%clk 0:02:38.9]} 10... O-O {[%clk 0:02:40.4]} 11. Re1
{[%clk 0:02:38.3]} 11... Be8 {[%clk 0:02:40.2]} 12. d4 {[%clk 0:02:37.4]} 12...
a5 {[%clk 0:02:39.4]} 13. c5 {[%clk 0:02:37.6]} 13... Bc7 {[%clk 0:02:38.7]} 14.
Nc3 {[%clk 0:02:37.4]} 14... Qc8 {[%clk 0:02:30.9]} 15. Na4 {[%clk 0:02:22.3]}
15... Qb7 {[%clk 0:02:16.2]} 16. Rc1 {[%clk 0:02:20.9]} 16... Nd7 {[%clk
0:02:14.6]} 17. Nd3 {[%clk 0:02:14.7]} 17... Nf6 {[%clk 0:02:11.4]} 18. Ba3
{[%clk 0:02:13.2]} 18... Ne4 {[%clk 0:02:08.1]} 19. f3 {[%clk 0:02:11]} 19...
Nf6 {[%clk 0:02:06]} 20. Nb6 {[%clk 0:02:00.6]} 20... Ra6 {[%clk 0:02:05]} 21.
Ne5 {[%clk 0:01:54.3]} 21... Bb8 {[%clk 0:02:01.4]} 22. Qd3 {[%clk 0:01:51.3]}
22... Ra7 {[%clk 0:01:57.1]} 23. Rb1 {[%clk 0:01:34.8]} 23... Nd7 {[%clk
0:01:51.9]} 24. Nexd7 {[%clk 0:01:22.3]} 24... Bxd7 {[%clk 0:01:52]} 25. Bc1
{[%clk 0:01:20.9]} 25... Qc7 {[%clk 0:01:44.8]} 26. g3 {[%clk 0:01:20.2]} 26...
Qd8 {[%clk 0:01:39.7]} 27. Qe3 {[%clk 0:01:14.7]} 27... Bc8 {[%clk 0:01:38.5]}
28. a3 {[%clk 0:01:13.7]} 28... Re8 {[%clk 0:01:36.1]} 29. f4 {[%clk 0:01:10]}
29... Bc7 {[%clk 0:01:32.3]} 30. Na4 {[%clk 0:01:07.6]} 30... Ba6 {[%clk
0:01:31.1]} 31. Bd2 {[%clk 0:01:05.8]} 31... Rb7 {[%clk 0:01:30.5]} 32. Qc3
{[%clk 0:00:59.9]} 32... Qb8 {[%clk 0:01:19]} 33. Re3 {[%clk 0:00:55.5]} 33...
h6 {[%clk 0:01:11.2]} 34. Nb6 {[%clk 0:00:53.7]} 34... Bxb6 {[%clk 0:01:06]} 35.
cxb6 {[%clk 0:00:54.6]} 35... Rxb6 {[%clk 0:01:05.9]} 36. Qxa5 {[%clk
0:00:55.2]} 36... Qb7 {[%clk 0:01:01.8]} 37. Qc3 {[%clk 0:00:40.9]} 37... Rb8
{[%clk 0:00:59.1]} 38. Qc2 {[%clk 0:00:40.4]} 38... Bb5 {[%clk 0:00:50.7]} 39.
Bb4 {[%clk 0:00:39]} 39... Qd7 {[%clk 0:00:43.2]} 40. f5 {[%clk 0:00:34.8]}
40... Re8 {[%clk 0:00:41.2]} 41. Rbe1 {[%clk 0:00:32.9]} 41... Rbb8 {[%clk
0:00:41.3]} 42. fxe6 {[%clk 0:00:32.8]} 42... Rxe6 {[%clk 0:00:40.3]} 43. Rxe6
{[%clk 0:00:32.3]} 43... fxe6 {[%clk 0:00:41.2]} 44. Qg6 {[%clk 0:00:32.1]}
44... Re8 {[%clk 0:00:40]} 45. Bd2 {[%clk 0:00:30.2]} 45... Qf7 {[%clk 0:00:35]}
46. Qxf7+ {[%clk 0:00:27.4]} 46... Kxf7 {[%clk 0:00:35.9]} 47. a4 {[%clk
0:00:27.4]} 47... Ba6 {[%clk 0:00:35.7]} 48. Rc1 {[%clk 0:00:27.8]} 48... Rc8
{[%clk 0:00:34.1]} 49. Rc5 {[%clk 0:00:27.5]} 49... Ke7 {[%clk 0:00:30.8]} 50.
Ra5 {[%clk 0:00:27.4]} 50... Ra8 {[%clk 0:00:30.6]} 51. Bb4+ {[%clk 0:00:24.7]}
51... Kd7 {[%clk 0:00:30.1]} 52. Kf2 {[%clk 0:00:24.2]} 52... Kc7 {[%clk
0:00:29]} 53. Bc5 {[%clk 0:00:24.2]} 53... Kb7 {[%clk 0:00:28.7]} 54. b4 {[%clk
0:00:22.2]} 54... Kc7 {[%clk 0:00:04.6]} 55. Ke3 {[%clk 0:00:17.5]} 55... Bb7
{[%clk 0:00:04.1]} 56. Rxa8 {[%clk 0:00:16.7]} 56... Bxa8 {[%clk 0:00:05]} 57.
Bf8 {[%clk 0:00:17]} 57... g6 {[%clk 0:00:04]} 58. Bxh6 {[%clk 0:00:17.2]} 58...
Kd7 {[%clk 0:00:04.9]} 59. Bf8 {[%clk 0:00:17.2]} 59... Bb7 {[%clk 0:00:04.8]}
60. Kf4 {[%clk 0:00:16.4]} 60... Ba6 {[%clk 0:00:04.4]} 61. Ke5 {[%clk
0:00:15.2]} 61... Bd3 {[%clk 0:00:03.6]} 62. Kf6 {[%clk 0:00:15.4]} 62... Bc2
{[%clk 0:00:03.4]} 63. g4 {[%clk 0:00:15.3]} 63... Bd3 {[%clk 0:00:04.3]} 64. h4
{[%clk 0:00:15]} 64... Be2 {[%clk 0:00:03.6]} 65. Kxg6 {[%clk 0:00:14.9]} 65...
Bxg4 {[%clk 0:00:03.5]} 66. Bg7 {[%clk 0:00:15]} 66... Kd6 {[%clk 0:00:02.7]}
67. Be5+ {[%clk 0:00:14.9]} 67... Ke7 {[%clk 0:00:03.1]} 68. a5 {[%clk 0:00:15]}
68... Kd7 {[%clk 0:00:03.2]} 69. h5 {[%clk 0:00:15.2]} 69... Bf5+ {[%clk
0:00:03.5]} 70. Kg7 {[%clk 0:00:14.4]} 70... Kc8 {[%clk 0:00:03.3]} 71. h6
{[%clk 0:00:14.6]} 71... Kb7 {[%clk 0:00:04.2]} 72. h7 {[%clk 0:00:14.7]} 72...
Bxh7 {[%clk 0:00:05.1]} 73. Kxh7 {[%clk 0:00:14.6]} 73... Ka6 {[%clk 0:00:06]}
74. Bd6 {[%clk 0:00:14.7]} 74... Kb5 {[%clk 0:00:06.9]} 75. Bc5 {[%clk
0:00:14.8]} 75... Kc4 {[%clk 0:00:06.3]} 76. Kg6 {[%clk 0:00:14.9]} 76... e5
{[%clk 0:00:07.2]} 77. dxe5 {[%clk 0:00:15.2]} 77... d4 {[%clk 0:00:08.1]} 78.
Bxd4 {[%clk 0:00:15.4]} 78... Kxd4 {[%clk 0:00:07.7]} 79. e6 {[%clk 0:00:15.7]}
79... c5 {[%clk 0:00:08.5]} 80. e7 {[%clk 0:00:15.9]} 80... cxb4 {[%clk
0:00:08]} 81. e8=Q {[%clk 0:00:16.1]} 81... b3 {[%clk 0:00:08.9]} 82. Qb5 {[%clk
0:00:15.7]} 82... Kc3 {[%clk 0:00:09.8]} 83. a6 {[%clk 0:00:16.1]} 83... b2
{[%clk 0:00:09.9]} 84. a7 {[%clk 0:00:15.8]} 84... b1=Q+ {[%clk 0:00:10.2]} 85.
Qxb1 {[%clk 0:00:15.1]} 1-0

[Event "Late-Titled-Tuesday-Blitz-February-20-2024"]
[Site "Chess.com"]
[Date "2024.02.20"]
[Round "3"]
[White "Firouzja2003"]
[Black "GnowReopard"]
[Result "1/2-1/2"]
[WhiteElo "3107"]
[BlackElo "2820"]
[TimeControl "180+1"]
[EndTime "14:30:45 PST"]
[Termination "Game drawn by 50-move rule"]

1. d4 {[%clk 0:03:00.9]} 1... Nf6 {[%clk 0:02:59.2]} 2. Bg5 {[%clk 0:03:01.1]}
2... Ne4 {[%clk 0:02:56]} 3. Bf4 {[%clk 0:03:00.3]} 3... c5 {[%clk 0:02:56.1]}
4. f3 {[%clk 0:02:53.6]} 4... Qa5+ {[%clk 0:02:55.7]} 5. c3 {[%clk 0:02:53.5]}
5... Nf6 {[%clk 0:02:56.2]} 6. dxc5 {[%clk 0:02:50.7]} 6... Qxc5 {[%clk
0:02:51.5]} 7. e4 {[%clk 0:02:40.2]} 7... Nc6 {[%clk 0:02:50.9]} 8. Qd2 {[%clk
0:02:35.6]} 8... d5 {[%clk 0:02:47.4]} 9. e5 {[%clk 0:02:35.5]} 9... Nd7 {[%clk
0:02:34.7]} 10. Be3 {[%clk 0:02:35.4]} 10... Qa5 {[%clk 0:02:32.2]} 11. f4
{[%clk 0:02:36]} 11... e6 {[%clk 0:02:23.4]} 12. Nf3 {[%clk 0:02:36.6]} 12...
Qc7 {[%clk 0:01:56.9]} 13. Bd3 {[%clk 0:02:22.4]} 13... Nc5 {[%clk 0:01:55.3]}
14. Bc2 {[%clk 0:02:22.8]} 14... b6 {[%clk 0:01:53.6]} 15. Na3 {[%clk
0:02:15.3]} 15... Ba6 {[%clk 0:01:52.6]} 16. Bxc5 {[%clk 0:01:51]} 16... Bxc5
{[%clk 0:01:50.6]} 17. b4 {[%clk 0:01:51.1]} 17... Be7 {[%clk 0:01:45.8]} 18.
Bd3 {[%clk 0:01:48.1]} 18... Bxd3 {[%clk 0:01:44.5]} 19. Qxd3 {[%clk 0:01:49]}
19... O-O {[%clk 0:01:30.9]} 20. Nb5 {[%clk 0:01:48.8]} 20... Qb7 {[%clk
0:01:24.9]} 21. O-O {[%clk 0:01:48.6]} 21... a5 {[%clk 0:01:21.4]} 22. a3 {[%clk
0:01:48.2]} 22... g6 {[%clk 0:01:12.7]} 23. g3 {[%clk 0:01:46.2]} 23... Qa6
{[%clk 0:01:07.5]} 24. Rad1 {[%clk 0:01:45.5]} 24... axb4 {[%clk 0:01:07]} 25.
axb4 {[%clk 0:01:45.1]} 25... Rfc8 {[%clk 0:01:03.6]} 26. h4 {[%clk 0:01:38.9]}
26... Na7 {[%clk 0:01:02.9]} 27. Nfd4 {[%clk 0:01:28.7]} 27... Nxb5 {[%clk
0:01:02.4]} 28. Nxb5 {[%clk 0:01:29.6]} 28... Qa2 {[%clk 0:01:00.3]} 29. Qe3
{[%clk 0:01:19.9]} 29... Qc4 {[%clk 0:00:55.4]} 30. Qd3 {[%clk 0:01:00.5]} 30...
Qxd3 {[%clk 0:00:42.1]} 31. Rxd3 {[%clk 0:01:00.5]} 31... Kg7 {[%clk 0:00:35.5]}
32. Kg2 {[%clk 0:00:59]} 32... h6 {[%clk 0:00:34.3]} 33. Kf3 {[%clk 0:00:59]}
33... Ra2 {[%clk 0:00:31.6]} 34. Rf2 {[%clk 0:00:59]} 34... Ra1 {[%clk 0:00:32]}
35. Rdd2 {[%clk 0:00:57.8]} 35... Rca8 {[%clk 0:00:27.5]} 36. h5 {[%clk
0:00:53.9]} 36... gxh5 {[%clk 0:00:27]} 37. f5 {[%clk 0:00:54.3]} 37... Bg5
{[%clk 0:00:23.6]} 38. Rd3 {[%clk 0:00:49.8]} 38... Re1 {[%clk 0:00:22.7]} 39.
fxe6 {[%clk 0:00:48]} 39... fxe6 {[%clk 0:00:22.1]} 40. Kg2 {[%clk 0:00:46.8]}
40... Rxe5 {[%clk 0:00:20.6]} 41. Rdf3 {[%clk 0:00:44.3]} 41... Rf5 {[%clk
0:00:19.8]} 42. Rxf5 {[%clk 0:00:38.9]} 42... exf5 {[%clk 0:00:20.7]} 43. Rxf5
{[%clk 0:00:39.6]} 43... Ra2+ {[%clk 0:00:20.2]} 44. Kh3 {[%clk 0:00:35.2]}
44... Rd2 {[%clk 0:00:19.9]} 45. Nc7 {[%clk 0:00:25.3]} 45... Rd3 {[%clk
0:00:20.2]} 46. Nxd5 {[%clk 0:00:25.2]} 46... h4 {[%clk 0:00:20.4]} 47. c4
{[%clk 0:00:18]} 47... Rxg3+ {[%clk 0:00:16.3]} 48. Kh2 {[%clk 0:00:18.5]} 48...
Rb3 {[%clk 0:00:16.9]} 49. b5 {[%clk 0:00:15]} 49... Rb2+ {[%clk 0:00:16.8]} 50.
Kh3 {[%clk 0:00:14.4]} 50... Rb3+ {[%clk 0:00:17.2]} 51. Kh2 {[%clk 0:00:13.8]}
51... Rb2+ {[%clk 0:00:17.6]} 52. Kh1 {[%clk 0:00:13.1]} 52... h3 {[%clk
0:00:16.6]} 53. Rf3 {[%clk 0:00:12.4]} 53... Rc2 {[%clk 0:00:16.7]} 54. Nxb6
{[%clk 0:00:12.1]} 54... Bd8 {[%clk 0:00:15.2]} 55. Rg3+ {[%clk 0:00:02.4]}
55... Kf7 {[%clk 0:00:14.5]} 56. Nd5 {[%clk 0:00:02.8]} 56... Rxc4 {[%clk
0:00:14.1]} 57. Rxh3 {[%clk 0:00:03.4]} 57... Rc5 {[%clk 0:00:13.9]} 58. Rf3+
{[%clk 0:00:01.6]} 58... Kg7 {[%clk 0:00:12.7]} 59. Nf4 {[%clk 0:00:02.3]} 59...
Rc1+ {[%clk 0:00:07.5]} 60. Kg2 {[%clk 0:00:01.9]} 60... Rc2+ {[%clk 0:00:08]}
61. Kh3 {[%clk 0:00:02.4]} 61... Bb6 {[%clk 0:00:07]} 62. Ne6+ {[%clk
0:00:02.6]} 62... Kg6 {[%clk 0:00:06.7]} 63. Nf4+ {[%clk 0:00:03.3]} 63... Kg5
{[%clk 0:00:05.3]} 64. Ne6+ {[%clk 0:00:03.3]} 64... Kg6 {[%clk 0:00:05.6]} 65.
Kg4 {[%clk 0:00:02.3]} 65... Rc4+ {[%clk 0:00:05.1]} 66. Nf4+ {[%clk 0:00:02]}
66... Kf6 {[%clk 0:00:05.6]} 67. Kh5 {[%clk 0:00:02.6]} 67... Ke5 {[%clk
0:00:05.7]} 68. Ng6+ {[%clk 0:00:03]} 68... Kd5 {[%clk 0:00:05.4]} 69. Rf5+
{[%clk 0:00:02.8]} 69... Kd4 {[%clk 0:00:05.4]} 70. Kxh6 {[%clk 0:00:02.1]}
70... Rc5 {[%clk 0:00:05.5]} 71. Rf4+ {[%clk 0:00:02.7]} 71... Kc3 {[%clk
0:00:05.5]} 72. Rf6 {[%clk 0:00:02.5]} 72... Rxb5 {[%clk 0:00:05.6]} 73. Re6
{[%clk 0:00:03.3]} 73... Kc4 {[%clk 0:00:04.9]} 74. Kg7 {[%clk 0:00:02.7]} 74...
Bd4+ {[%clk 0:00:04.8]} 75. Kh6 {[%clk 0:00:02.5]} 75... Rb6 {[%clk 0:00:05]}
76. Re1 {[%clk 0:00:02.8]} 76... Bc3 {[%clk 0:00:05]} 77. Re2 {[%clk 0:00:03.2]}
77... Kd3 {[%clk 0:00:05.4]} 78. Re8 {[%clk 0:00:03.5]} 78... Bd2+ {[%clk
0:00:06.3]} 79. Kh5 {[%clk 0:00:03.5]} 79... Rb5+ {[%clk 0:00:06.8]} 80. Kh4
{[%clk 0:00:03.9]} 80... Bg5+ {[%clk 0:00:06.1]} 81. Kg4 {[%clk 0:00:04.1]}
81... Bd2 {[%clk 0:00:07]} 82. Ne5+ {[%clk 0:00:03.5]} 82... Kc2 {[%clk
0:00:07.4]} 83. Kf3 {[%clk 0:00:03.3]} 83... Rb3+ {[%clk 0:00:07.3]} 84. Ke4
{[%clk 0:00:02.5]} 84... Re3+ {[%clk 0:00:07.3]} 85. Kd4 {[%clk 0:00:03.2]}
85... Re1 {[%clk 0:00:06.5]} 86. Rc8+ {[%clk 0:00:03.2]} 86... Kd1 {[%clk
0:00:06.3]} 87. Nc4 {[%clk 0:00:03.3]} 87... Bc1 {[%clk 0:00:06.1]} 88. Kd3
{[%clk 0:00:03.3]} 88... Rh1 {[%clk 0:00:05.6]} 89. Rg8 {[%clk 0:00:03]} 89...
Rh3+ {[%clk 0:00:05.7]} 90. Kd4 {[%clk 0:00:03.7]} 90... Kc2 {[%clk 0:00:06.1]}
91. Rg2+ {[%clk 0:00:03.8]} 91... Kb3 {[%clk 0:00:06.4]} 92. Na5+ {[%clk
0:00:03.4]} 92... Kb4 {[%clk 0:00:06.9]} 93. Nc6+ {[%clk 0:00:03.9]} 93... Kb3
{[%clk 0:00:07.5]} 94. Kd5 {[%clk 0:00:04]} 94... Bb2 {[%clk 0:00:07.5]} 95.
Na5+ {[%clk 0:00:04.4]} 95... Kb4 {[%clk 0:00:07.4]} 96. Nc6+ {[%clk 0:00:03.6]}
96... Kb3 {[%clk 0:00:07.9]} 97. Kc5 {[%clk 0:00:03.4]} 97... Rh5+ {[%clk
0:00:07.2]} 98. Kb6 {[%clk 0:00:03.9]} 98... Bc3 {[%clk 0:00:07.2]} 99. Rg4
{[%clk 0:00:04.2]} 99... Rf5 {[%clk 0:00:06.1]} 100. Na7 {[%clk 0:00:04.2]}
100... Rh5 {[%clk 0:00:06.5]} 101. Nb5 {[%clk 0:00:04.5]} 101... Bb2 {[%clk
0:00:06.1]} 102. Rg3+ {[%clk 0:00:03.3]} 102... Kc4 {[%clk 0:00:06.2]} 103. Nd6+
{[%clk 0:00:02.3]} 103... Kb4 {[%clk 0:00:03.8]} 104. Rg4+ {[%clk 0:00:02.2]}
104... Kb3 {[%clk 0:00:04.2]} 105. Ne4 {[%clk 0:00:02.2]} 105... Bd4+ {[%clk
0:00:04]} 106. Kc6 {[%clk 0:00:02.9]} 106... Bb2 {[%clk 0:00:03.4]} 107. Nc5+
{[%clk 0:00:03.2]} 107... Kc2 {[%clk 0:00:03]} 108. Rg2+ {[%clk 0:00:03]} 108...
Kb1 {[%clk 0:00:03.1]} 109. Na4 {[%clk 0:00:02.2]} 109... Bd4 {[%clk 0:00:02.6]}
110. Kd6 {[%clk 0:00:02.1]} 110... Kc1 {[%clk 0:00:01.2]} 111. Kc6 {[%clk
0:00:02.2]} 111... Be3 {[%clk 0:00:01.5]} 112. Nc3 {[%clk 0:00:01.8]} 112... Bd2
{[%clk 0:00:01.6]} 113. Ne4 {[%clk 0:00:01.9]} 113... Be3 {[%clk 0:00:01.5]}
114. Re2 {[%clk 0:00:02.5]} 114... Bd4 {[%clk 0:00:01.5]} 115. Ng3 {[%clk
0:00:02.9]} 115... Rh6+ {[%clk 0:00:01.4]} 116. Kd5 {[%clk 0:00:03.2]} 116...
Bc3 {[%clk 0:00:01.8]} 117. Kc4 {[%clk 0:00:03.8]} 117... Rc6+ {[%clk
0:00:01.8]} 118. Kd3 {[%clk 0:00:04.5]} 118... Kb1 {[%clk 0:00:02.3]} 119. Rg2
{[%clk 0:00:04.5]} 119... Bb4 {[%clk 0:00:02.6]} 120. Ne4 {[%clk 0:00:05.1]}
120... Ba5 {[%clk 0:00:02.7]} 121. Rg5 {[%clk 0:00:05]} 121... Bb4 {[%clk
0:00:02.3]} 122. Rb5 {[%clk 0:00:05.7]} 122... Ka2 {[%clk 0:00:02.5]} 1/2-1/2